fUST/lending_fUST_20250618
["ID","MTS","AMOUNT","RATE_DAILY","PERIOD"]
[366422621,1750247432671,-723.20983486,0.00018853,2]
[366422623,1750247432683,-4731.02418746,0.00018853,2]
[366422625,1750247432692,-171.956327,0.0001886,2]
[366422627,1750247432702,-1727.26387384,0.000189,2]
[366422629,1750247432711,-1000.0,0.00018999,2]
[366422631,1750247432721,-393.98821902,0.00019,2]
[366422633,1750247432730,-2671.5451886,0.00019175,2]
[366422635,1750247432740,-162.915566,0.00019178,2]
[366422637,1750247432750,-1530.75,0.00019389,2]
[366422640,1750247432771,-171.564989,0.0001956,2]
[366422642,1750247432781,-254.76371771,0.000201,2]
[366422644,1750247432792,-254.76371747,0.00020107,2]
[366422646,1750247432802,-106.1356439,0.00020187,2]
[366422648,1750247432819,-81.4332321,0.00020187,2]
[366422650,1750247432829,-254.76371747,0.00020314,3]
[366422652,1750247432839,-12542.39314967,0.00020452,2]
[366422654,1750247432849,-835.98428123,0.00020452,2]
[366422656,1750247432859,-160.0,0.00020452,2]
[366422658,1750247432868,-424.70586748,0.00020452,2]
[366422660,1750247432878,-213.43818883,0.00020452,2]
[366422662,1750247432887,-160.0,0.00020452,2]
[366422664,1750247432897,-229.98435572,0.00020452,2]
[366422666,1750247432906,-160.0,0.00020452,2]
[366422668,1750247432916,-160.0,0.00020452,2]
[366422670,1750247432925,-301.83634579,0.00020454,2]
[366422672,1750247432935,-254.76371747,0.00020521,3]
[366422674,1750247432945,-420.0,0.00020552,2]
[366422676,1750247432955,-420.0,0.00020552,2]
[366422677,1750247432965,-370.62988449,0.00020587,2]
[366422680,1750247432975,-500.0,0.00020587,2]
[366422681,1750247432984,-500.0,0.00020587,2]
[366422683,1750247432994,-337.36915347,0.00020587,2]
[366422685,1750247433004,-500.0,0.00020587,2]
[366422687,1750247433013,-500.0,0.00020587,2]
[366422689,1750247433023,-190.28191108,0.00020587,2]
[366422691,1750247433034,-500.0,0.00020587,2]
[366422693,1750247433044,-500.0,0.00020587,2]
[366422695,1750247433054,-500.0,0.00020587,2]
[366422697,1750247433065,-500.0,0.00020587,2]
[366422699,1750247433075,-500.0,0.00020587,2]
[366422701,1750247433086,-500.0,0.00020587,2]
[366422703,1750247433096,-500.0,0.00020587,2]
[366422705,1750247433107,-500.0,0.00020587,2]
[366422707,1750247433117,-500.0,0.00020587,2]
[366422709,1750247433128,-500.0,0.00020587,2]
[366422711,1750247433139,-529.59821079,0.00020587,2]
[366422713,1750247433149,-500.0,0.00020587,2]
[366422715,1750247433159,-500.0,0.00020587,2]
[366422717,1750247433168,-500.0,0.00020587,2]
[366422719,1750247433178,-500.0,0.00020587,2]
[366422721,1750247433187,-500.0,0.00020587,2]
[366422723,1750247433197,-500.0,0.00020587,2]
[366422725,1750247433207,-500.0,0.00020587,2]
[366422727,1750247433217,-500.0,0.00020587,2]
[366422729,1750247433227,-500.0,0.00020587,2]
[366422731,1750247433237,-500.0,0.00020587,2]
[366422733,1750247433247,-500.0,0.00020587,2]
[366422735,1750247433256,-500.0,0.00020587,2]
[366422737,1750247433266,-500.0,0.00020587,2]
[366422739,1750247433276,-500.0,0.00020587,2]
[366422741,1750247433287,-541.17972938,0.00020587,2]
[366422743,1750247433296,-500.0,0.00020587,2]
[366422744,1750247433306,-188.23,0.00020646,2]
[366422746,1750247433316,-254.76371747,0.00020728,3]
[366422748,1750247433327,-254.76371747,0.00020934,4]
[366422750,1750247433337,-254.76371747,0.00021141,4]
[366422752,1750247433347,-3061.5,0.00021152,2]
[366422754,1750247433357,-274.0,0.00021156,2]
[366422756,1750247433367,-274.0,0.00021183,2]
[366422758,1750247433384,-274.0,0.00021209,2]
[366422760,1750247433394,-274.0,0.00021325,2]
[366422762,1750247433404,-274.0,0.00021338,2]
[366422764,1750247433415,-254.76371747,0.00021348,5]
[366422766,1750247433426,-254.76371747,0.00021555,5]
[366422768,1750247433436,-254.76371747,0.00021762,5]
[366422770,1750247433446,-952.98937388,0.00021769,2]
[366422772,1750247433458,-742.0,0.00021843,2]
[366422774,1750247433468,-274.0,0.00021862,2]
[366422776,1750247433479,-160.0,0.00021916,2]
[366422777,1750247433488,-460.0,0.00021917,6]
[366422778,1750247433498,-460.0,0.00021917,6]
[366422780,1750247433508,-440.0,0.00021917,6]
[366422781,1750247433517,-265.25753971,0.00021917,6]
[366422783,1750247433528,-460.0,0.00021917,6]
[366422785,1750247433539,-460.0,0.00021917,6]
[366422787,1750247433550,-49.95000857,0.00021917,6]
[366422795,1750247438415,-380.04999143,0.00021917,6]
[366422796,1750247438425,-301.52955287,0.00021917,6]
[366422797,1750247438434,-440.0,0.00021917,6]
[366422798,1750247438443,-460.0,0.00021917,6]
[366422799,1750247438453,-295.21,0.00021917,6]
[366422800,1750247438464,-460.0,0.00021917,6]
[366422801,1750247438474,-460.0,0.00021917,6]
[366422802,1750247438483,-460.0,0.00021917,6]
[366422803,1750247438492,-460.0,0.00021917,6]
[366422804,1750247438501,-460.0,0.00021917,6]
[366422805,1750247438510,-440.0,0.00021917,6]
[366422806,1750247438519,-460.0,0.00021917,6]
[366422807,1750247438529,-329.69853494,0.00021917,6]
[366422808,1750247438539,-350.0,0.00021917,6]
[366422809,1750247438548,-460.0,0.00021917,6]
[366422810,1750247438557,-460.0,0.00021917,6]
[366422811,1750247438566,-592.52,0.00021917,6]
[366422812,1750247438575,-460.0,0.00021917,6]
[366422813,1750247438585,-460.0,0.00021917,6]
[366422814,1750247438594,-460.0,0.00021917,6]
[366422815,1750247438603,-202.15257083,0.00021917,6]
[366422823,1750247440916,-64.90938926,0.00021917,6]
[366422824,1750247440928,-225.34803991,0.00021917,6]
[366422825,1750247440938,-118.22227339,0.00021917,6]
[366422861,1750247445850,-223.0,0.00019392,2]
[366422897,1750247446523,-0.12223923,0.00019392,2]
[366422902,1750247446556,-827.21057423,0.00019392,2]
[366423292,1750247993580,176.93565,0.00013699,2]
[366423293,1750248207892,-361.33876577,0.00018623,2]
[366423296,1750248398427,-163.5887944,0.00018437,2]
[366423342,1750248632655,-749.99955344,0.00018711,2]
[366423344,1750248632667,-4250.00044656,0.00018711,2]
[366423346,1750248632676,-1151.54478379,0.000189,2]
[366423348,1750248632687,-198.9493865,0.00018934,2]
[366423350,1750248632696,-957.10627521,0.00019386,2]
[366423353,1750248632708,-116.89372479,0.00019386,2]
[366423355,1750248632718,-202.70204398,0.00019387,2]
[366423370,1750248632867,-1261.18795602,0.00019387,2]
[366423372,1750248632876,-807.51519123,0.00019392,2]
[366423374,1750248632885,-300.0,0.00019954,2]
[366423376,1750248632895,-300.0,0.00019954,2]
[366423378,1750248632904,-300.0,0.00019955,2]
[366423380,1750248632914,-500.0,0.00019957,2]
[366423383,1750248632923,-500.0,0.00019957,2]
[366423386,1750248632933,-500.0,0.00019957,2]
[366423389,1750248632943,-559.08128729,0.00019957,2]
[366423392,1750248632953,-336.62202342,0.00019957,2]
[366423395,1750248632963,-500.0,0.00019957,2]
[366423398,1750248632972,-500.0,0.00019957,2]
[366423401,1750248632982,-567.33754111,0.00019957,2]
[366423404,1750248632991,-500.0,0.00019957,2]
[366423407,1750248633000,-500.0,0.00019957,2]
[366423410,1750248633010,-500.0,0.00019957,2]
[366423412,1750248633020,-500.0,0.00019957,2]
[366423414,1750248633030,-614.52663936,0.00019957,2]
[366423416,1750248633040,-500.0,0.00019957,2]
[366423418,1750248633050,-500.0,0.00019957,2]
[366423420,1750248633064,-500.0,0.00019957,2]
[366423423,1750248633075,-500.0,0.00019957,2]
[366423426,1750248633085,-273.97578387,0.00019957,2]
[366423428,1750248633095,-387.9517877,0.00019957,2]
[366423430,1750248633105,-148.79045582,0.00019957,2]
[366423460,1750248638523,-177.53490656,0.00019957,2]
[366423461,1750248638533,-500.0,0.00019957,2]
[366423462,1750248638543,-370.76509344,0.00019957,2]
[366423463,1750248638576,-129.23490656,0.00019957,2]
[366423464,1750248638586,-500.0,0.00019957,2]
[366423465,1750248638596,-370.76509344,0.00019957,2]
[366423474,1750248640783,-129.23490656,0.00019957,2]
[366423475,1750248640793,-231.1029137,0.00019957,2]
[366423476,1750248640802,-1762.54158378,0.00019958,2]
[366423477,1750248640813,-6198.8060537,0.00019958,2]
[366423478,1750248640822,-3192.05436048,0.00019959,2]
[366423502,1750248643620,-10103.00000001,0.00019959,2]
[366423503,1750248643676,-11604.94563951,0.00019959,2]
[366423504,1750248643686,-618.14853511,0.00019984,2]
[366423505,1750248643696,-162.915566,0.00020084,2]
[366423507,1750248643705,-176.93565,0.00020187,2]
[366423509,1750248643715,-845.78193577,0.00020518,2]
[366423511,1750248643725,-835.98428123,0.00020518,2]
[366423513,1750248643735,-424.70586748,0.00020518,2]
[366423515,1750248643745,-213.43818883,0.00020518,2]
[366423517,1750248643755,-229.98435572,0.00020518,2]
[366423519,1750248643765,-160.0,0.00020518,2]
[366423520,1750248643778,-12542.39314967,0.00020518,2]
[366423523,1750248643791,-150.584,0.00020651,2]
[366423525,1750248643802,-1492.1791939,0.00020695,2]
[366423527,1750248643815,-618.14853511,0.00020713,2]
[366423529,1750248643826,-400.84214423,0.000209,4]
[366423531,1750248643836,-268.81723379,0.00021072,4]
[366423533,1750248643850,-132.02491036,0.00021072,4]
[366423535,1750248643862,-153.0,0.00021178,2]
[366423537,1750248643872,-176.9937618,0.00021178,2]
[366423538,1750248643883,-158.8714084,0.00021178,2]
[366423539,1750248643894,-573.7859869,0.00021178,2]
[366423540,1750248643904,-228.0,0.00021213,2]
[366423541,1750248643914,-400.84214415,0.00021245,4]
[366423542,1750248643924,-400.84214415,0.00021417,5]
[366423543,1750248643934,-618.14853511,0.00021441,2]
[366423544,1750248643944,-400.84214415,0.0002159,5]
[366423545,1750248643954,-207.4,0.00021717,2]
[366423546,1750248643963,-300.0,0.00021729,2]
[366423547,1750248643973,-420.0,0.0002173,2]
[366423548,1750248643983,-400.84214415,0.00021762,5]
[366423549,1750248643995,-500.0,0.00021916,2]
[366423550,1750248644005,-219.00521093,0.00021916,2]
[366423551,1750248644014,-460.0,0.00021917,6]
[366423552,1750248644024,-460.0,0.00021917,6]
[366423553,1750248644034,-460.0,0.00021917,6]
[366423554,1750248644043,-460.0,0.00021917,6]
[366423555,1750248644053,-500.0,0.00021917,6]
[366423556,1750248644063,-218.80959887,0.00021917,6]
[366423557,1750248644073,-460.0,0.00021917,6]
[366423558,1750248644082,-625.5,0.00021917,6]
[366423559,1750248644092,-460.0,0.00021917,6]
[366423560,1750248644102,-460.0,0.00021917,6]
[366423561,1750248644111,-491.06,0.00021917,6]
[366423562,1750248644121,-201.74916516,0.00021917,6]
[366423563,1750248644131,-385.81083318,0.00021917,6]
[366423564,1750248644141,-180.0,0.00021917,6]
[366423565,1750248644151,-460.0,0.00021917,6]
[366423566,1750248644160,-571.24,0.00021917,6]
[366423567,1750248644170,-460.0,0.00021917,6]
[366423568,1750248644179,-460.0,0.00021917,6]
[366423569,1750248644189,-460.0,0.00021917,6]
[366423570,1750248644198,-460.0,0.00021917,6]
[366423571,1750248644207,-460.0,0.00021917,6]
[366423572,1750248644216,-460.0,0.00021917,6]
[366423573,1750248644226,-460.0,0.00021917,6]
[366423574,1750248644235,-460.0,0.00021917,6]
[366423575,1750248644245,-460.0,0.00021917,6]
[366423576,1750248644254,-455.63857379,0.00021917,6]
[366423577,1750248644263,-460.0,0.00021917,6]
[366423578,1750248644273,-460.0,0.00021917,6]
[366423579,1750248644383,-600.0,0.00021917,6]
[366423580,1750248644394,-440.0,0.00021917,6]
[366423581,1750248644404,-460.0,0.00021917,6]
[366423582,1750248644413,-460.0,0.00021917,6]
[366423583,1750248644422,-460.0,0.00021917,6]
[366423584,1750248644432,-460.0,0.00021917,6]
[366423585,1750248644442,-330.0,0.00021917,6]
[366423586,1750248644451,-460.0,0.00021917,6]
[366423587,1750248644460,-440.0,0.00021917,6]
[366423588,1750248644469,-201.08793765,0.00021917,6]
[366423589,1750248644479,-460.0,0.00021917,6]
[366423590,1750248644488,-460.0,0.00021917,6]
[366423591,1750248644497,-460.0,0.00021917,6]
[366423592,1750248644507,-460.0,0.00021917,6]
[366423593,1750248644517,-460.0,0.00021917,6]
[366423594,1750248644526,-259.30877488,0.00021917,6]
[366423617,1750248646576,-200.69122512,0.00021917,6]
[366423618,1750248646586,-460.0,0.00021917,6]
[366423619,1750248646595,-460.0,0.00021917,6]
[366423620,1750248646604,-460.0,0.00021917,6]
[366423621,1750248646614,-460.0,0.00021917,6]
[366423622,1750248646623,-460.0,0.00021917,6]
[366423623,1750248646633,-460.0,0.00021917,6]
[366423624,1750248646642,-379.90100698,0.00021917,6]
[366423625,1750248646651,-460.0,0.00021917,6]
[366423626,1750248646660,-460.0,0.00021917,6]
[366423627,1750248646669,-460.0,0.00021917,6]
[366423628,1750248646678,-460.0,0.00021917,6]
[366423629,1750248646687,-460.0,0.00021917,6]
[366423630,1750248646696,-460.0,0.00021917,6]
[366423631,1750248646705,-1399.53,0.00021917,6]
[366423632,1750248646715,-460.0,0.00021917,6]
[366423633,1750248646725,-460.0,0.00021917,6]
[366423634,1750248646735,-460.0,0.00021917,6]
[366423635,1750248646745,-693.0,0.00021917,6]
[366423636,1750248646755,-460.0,0.00021917,6]
[366423637,1750248646765,-460.0,0.00021917,6]
[366423638,1750248646775,-400.84214415,0.00021934,6]
[366423639,1750248646788,-274.0,0.00021965,2]
[366423640,1750248646797,-274.0,0.00021975,2]
[366423642,1750248646807,-274.6054202,0.00021999,2]
[366423643,1750248646818,-1000.0,0.00022,2]
[366423645,1750248646828,-249.72181601,0.00022107,6]
[366423647,1750248646840,-151.12032814,0.00022107,6]
[366423648,1750248646850,-618.14853511,0.0002217,2]
[366423650,1750248646860,-460.0,0.00022191,6]
[366423652,1750248646870,-460.0,0.00022191,6]
[366423654,1750248646879,-625.5,0.00022191,6]
[366423656,1750248646888,-460.0,0.00022191,6]
[366423658,1750248646897,-460.0,0.00022191,6]
[366423660,1750248646906,-491.06,0.00022191,6]
[366423662,1750248646916,-460.0,0.00022191,6]
[366423664,1750248646926,-571.24,0.00022191,6]
[366423666,1750248646934,-460.0,0.00022191,6]
[366423668,1750248646944,-460.0,0.00022191,6]
[366423670,1750248646953,-248.52143622,0.00022191,6]
[366423671,1750248646963,-460.0,0.00022191,6]
[366423673,1750248646972,-460.0,0.00022191,6]
[366423675,1750248646983,-460.0,0.00022191,6]
[366423676,1750248646992,-460.0,0.00022191,6]
[366423678,1750248647002,-534.84988418,0.00022191,6]
[366423680,1750248647011,-460.0,0.00022191,6]
[366423682,1750248647020,-460.0,0.00022191,6]
[366423684,1750248647029,-460.0,0.00022191,6]
[366423686,1750248647038,-387.50381283,0.00022191,6]
[366423688,1750248647048,-415.05600352,0.00022191,6]
[366423715,1750248835730,-288.81150018,0.00019202,2]
[366423717,1750248868817,-164.79406157,0.00019202,2]
[366423718,1750248948416,167.47626,0.00013699,2]
[366423719,1750249050481,158.92,0.00019216,120]
[366423720,1750249212928,-156.4667223,0.00019024,2]
[366423729,1750249522469,793.0,0.00024657,120]
[366423730,1750249542465,1000.0,0.00024657,120]
[366423731,1750249598164,-159.77149774,0.00019132,2]
[366423732,1750249671322,16153.95695295,0.00018,2]
[366423733,1750249671347,479.98171073,0.00018,2]
[366424697,1750249831764,-5000.0,0.00018711,2]
[366424698,1750249831775,-767.69652253,0.000189,2]
[366424699,1750249831785,-300.0,0.00019573,2]
[366424700,1750249831794,-500.0,0.00019574,2]
[366424701,1750249831804,-500.0,0.00019574,2]
[366424702,1750249831814,-500.0,0.00019574,2]
[366424703,1750249831824,-500.0,0.00019574,2]
[366424704,1750249831833,-500.0,0.00019574,2]
[366424705,1750249831844,-500.0,0.00019574,2]
[366424706,1750249831854,-500.0,0.00019574,2]
[366424707,1750249831863,-500.0,0.00019574,2]
[366424708,1750249831873,-500.0,0.00019574,2]
[366424709,1750249831883,-500.0,0.00019574,2]
[366424710,1750249831893,-500.0,0.00019574,2]
[366424711,1750249831902,-500.0,0.00019574,2]
[366424712,1750249831912,-500.0,0.00019574,2]
[366424713,1750249831922,-500.0,0.00019574,2]
[366424714,1750249831932,-500.0,0.00019574,2]
[366424715,1750249831941,-265.97639516,0.00019574,2]
[366424716,1750249831951,-500.0,0.00019574,2]
[366424717,1750249831961,-500.0,0.00019574,2]
[366424718,1750249831970,-500.0,0.00019574,2]
[366424719,1750249831980,-181.13065346,0.00019574,2]
[366424720,1750249832111,-206.0,0.00019575,2]
[366424721,1750249832121,-12326.77858228,0.0001958,2]
[366424741,1750249839818,-338.15014149,0.00019573,2]
[366424742,1750249839827,-500.0,0.00019573,2]
[366424743,1750249839837,-315.94713993,0.00019573,2]
[366424744,1750249839848,-500.0,0.00019573,2]
[366424745,1750249839858,-500.0,0.00019573,2]
[366424746,1750249839868,-500.0,0.00019573,2]
[366424747,1750249839878,-500.0,0.00019573,2]
[366424748,1750249839887,-500.0,0.00019573,2]
[366424749,1750249839897,-500.0,0.00019573,2]
[366424750,1750249839907,-500.0,0.00019573,2]
[366424751,1750249839917,-500.0,0.00019573,2]
[366424753,1750249839927,-500.0,0.00019573,2]
[366424754,1750249839936,-500.0,0.00019573,2]
[366424755,1750249839946,-332.63253623,0.00019573,2]
[366424756,1750249839955,-500.0,0.00019573,2]
[366424757,1750249839965,-376.59763951,0.00019573,2]
[366424758,1750249839974,-272.58142169,0.00019573,2]
[366424759,1750249839991,-227.41857831,0.00019573,2]
[366424760,1750249840000,-468.31811673,0.00019573,2]
[366424761,1750249840012,-31.68188327,0.00019573,2]
[366424762,1750249840022,-500.0,0.00019573,2]
[366424763,1750249840031,-500.0,0.00019573,2]
[366424764,1750249840042,-500.0,0.00019573,2]
[366424765,1750249840051,-500.0,0.00019573,2]
[366424766,1750249840061,-500.0,0.00019573,2]
[366424767,1750249840071,-500.0,0.00019573,2]
[366424768,1750249840080,-500.0,0.00019573,2]
[366424769,1750249840091,-500.0,0.00019573,2]
[366424770,1750249840101,-500.0,0.00019573,2]
[366424771,1750249840110,-309.379604,0.00019573,2]
[366424772,1750249840121,-500.0,0.00019573,2]
[366424773,1750249840131,-500.0,0.00019573,2]
[366424774,1750249840140,-500.0,0.00019573,2]
[366424775,1750249840149,-680.48335857,0.0001958,2]
[366424776,1750249840161,-4440.0,0.0001958,2]
[366424792,1750249846435,396.7503005,0.00025187,120]
[366425009,1750250014055,166.991872,0.00013699,2]
[366425010,1750250032355,555.0,0.00023,30]
[366425011,1750250035542,-222.04152509,0.00018612,2]
[366425012,1750250041630,555.0,0.00023,30]
[366425013,1750250061227,555.0,0.00023,30]
[366425014,1750250070379,555.0,0.00023,30]
[366425015,1750250111899,563.0,0.00023,30]
[366425016,1750250182859,2000.0,0.00023,30]
[366425017,1750250224643,5000.0,0.000181,2]
[366425018,1750250226722,-241.47574459,0.000182,2]
[366425019,1750250285027,-287.3677084,0.00018612,2]
[366425020,1750250344781,-359.0,0.00018134,2]
[366425021,1750250362003,300.0,0.00023,30]
[366425029,1750250430489,14353.02641727,0.000181,2]
[366425030,1750250430513,10646.97358273,0.000181,2]
[366425031,1750250435491,-300.0,0.00018134,2]
[366425032,1750250455881,651.43940335,0.00017157,2]
[366425033,1750250472396,4552.47560651,0.000181,2]
[366425034,1750250537792,177.883952,0.00018016,2]
[366425035,1750250538373,-177.883952,0.00018134,2]
[366425036,1750250659551,192.45544091,0.00018016,2]
[366425037,1750250680553,1581.65636206,0.000181,2]
[366425038,1750250681126,-123.4059341,0.00018134,2]
[366425039,1750250685573,-187.90630452,0.00018241,2]
[366425040,1750250702926,-300.0,0.0001824,2]
[366425042,1750250758897,-300.0,0.0001824,2]
[366425043,1750250764248,-200.0,0.0001824,2]
[366425044,1750250793720,-157.9651217,0.0001824,2]
[366425045,1750250793741,-88.18620099,0.0001824,2]
[366425046,1750250801407,-188.23937203,0.00018139,2]
[366425047,1750250823669,-31.20103561,0.00018139,2]
[366425048,1750250823692,-219.44040764,0.0001814,2]
[366425049,1750250823716,-49.35855675,0.00018239,2]
[366425050,1750250833443,223.0453163,0.0001766,2]
[366425051,1750250843522,1974.07033614,0.0001766,2]
[366425052,1750250843545,8025.92966386,0.0001766,2]
[366425053,1750250843596,300.0,0.000181,2]
[366425054,1750250857543,-250.64144325,0.00018239,2]
[366425055,1750250857567,-249.35855675,0.00018239,2]
[366425056,1750250874270,500.0,0.000181,2]
[366425060,1750250944258,1000.0,0.00025197,120]
[366425061,1750250946693,-200.0,0.00018239,2]
[366425062,1750250963925,200.0,0.000181,2]
[366425064,1750250977420,333.0,0.00023,30]
[366425065,1750251003766,-300.0,0.00018239,2]
[366425066,1750251008941,300.0,0.000181,2]
[366425108,1750251031894,-1200.0,0.00018239,2]
[366425110,1750251031903,-300.0,0.00018239,2]
[366425112,1750251031914,-1788.24618713,0.00018239,2]
[366425114,1750251031923,-411.81379901,0.0001824,2]
[366425116,1750251031932,-500.0,0.0001824,2]
[366425118,1750251031941,-500.0,0.0001824,2]
[366425120,1750251031950,-502.20325004,0.0001824,2]
[366425122,1750251031960,-500.0,0.0001824,2]
[366425124,1750251031969,-500.0,0.0001824,2]
[366425126,1750251031978,-500.0,0.0001824,2]
[366425128,1750251031987,-500.0,0.0001824,2]
[366425130,1750251031996,-500.0,0.0001824,2]
[366425132,1750251032005,-500.0,0.0001824,2]
[366425134,1750251032015,-500.0,0.0001824,2]
[366425136,1750251032024,-399.96525225,0.0001824,2]
[366425138,1750251032033,-500.0,0.0001824,2]
[366425140,1750251032042,-394.79366017,0.0001824,2]
[366425142,1750251032051,-500.0,0.0001824,2]
[366425156,1750251032171,-474.11778736,0.0001824,2]
[366425160,1750251032187,-25.88221264,0.0001824,2]
[366425163,1750251032196,-500.0,0.0001824,2]
[366425166,1750251032207,-500.0,0.0001824,2]
[366425169,1750251032216,-500.0,0.0001824,2]
[366425172,1750251032226,-500.0,0.0001824,2]
[366425175,1750251032236,-500.0,0.0001824,2]
[366425178,1750251032246,-500.0,0.0001824,2]
[366425181,1750251032255,-500.0,0.0001824,2]
[366425184,1750251032264,-500.0,0.0001824,2]
[366425187,1750251032274,-551.82012209,0.0001824,2]
[366425190,1750251032283,-500.0,0.0001824,2]
[366425193,1750251032293,-500.0,0.0001824,2]
[366425196,1750251032302,-500.0,0.0001824,2]
[366425199,1750251032311,-598.27673259,0.0001824,2]
[366425202,1750251032320,-500.0,0.0001824,2]
[366425205,1750251032329,-500.0,0.0001824,2]
[366425208,1750251032338,-300.0,0.0001824,2]
[366425211,1750251032347,-4163.50233504,0.00018241,2]
[366425244,1750251032634,-252.4,0.00018241,2]
[366425740,1750251037823,-637.71762885,0.00018241,2]
[366425793,1750251038608,-163.74806093,0.00018241,2]
[366425881,1750251040163,-3514.06973261,0.00018241,2]
[366425882,1750251040257,-3813.12580648,0.00018241,2]
[366425883,1750251040269,-34782.49196811,0.00018241,2]
[366425891,1750251040516,-58.55424472,0.00018241,2]
[366425892,1750251040528,-430.0,0.00018241,2]
[366425893,1750251040648,252.4,0.000181,2]
[366425894,1750251040769,-320.7242476,0.00018241,2]
[366426206,1750251046159,-7712.28436074,0.00018241,2]
[366426208,1750251046170,-201.37273788,0.000188,2]
[366426210,1750251046180,-1441.3752373,0.000189,2]
[366426212,1750251046190,-222.2980109,0.00019178,2]
[366426214,1750251046201,-500.0,0.00019241,2]
[366426216,1750251046211,-204.195604,0.00019241,2]
[366426219,1750251046222,-15584.14280171,0.00019242,2]
[366426287,1750251158272,174.520179,0.00013699,2]
[366426288,1750251245928,-222.04152509,0.00018478,2]
[366426292,1750251438045,-280.98251109,0.00018293,2]
[366426295,1750251556713,-180.27555046,0.00018148,2]
[366426297,1750251625637,664.74785899,0.000181,2]
[366426299,1750251723301,303.77008579,0.000245,120]
[366426300,1750251738574,3850.0,0.00023,30]
[366426301,1750251751981,158.72912227,0.000245,120]
[366426303,1750251775955,1177.89940022,0.000181,2]
[366426304,1750251786238,-18.36131394,0.00018148,2]
[366426307,1750251912058,5000.0,0.00017157,2]
[366426308,1750251964971,824.9275602,0.0001787,2]
[366426309,1750252025545,319.926481,0.00018078,2]
[366426310,1750252089073,-173.3,0.00018478,2]
[366426311,1750252119085,-177.5058822,0.0001824,2]
[366426312,1750252143729,-220.48295748,0.0001824,2]
[366426313,1750252147571,187.961866,0.0001814,2]
[366426314,1750252148652,1569.4592273,0.00017792,2]
[366426319,1750252198314,169.72259972,0.00016438,3]
[366426320,1750252203103,-193.181,0.0001824,2]
[366426359,1750252232113,-408.83016032,0.0001824,2]
[366426361,1750252232123,-752.31193808,0.0001824,2]
[366426370,1750252232212,-247.68806192,0.0001824,2]
[366426371,1750252232223,-229.21618859,0.0001824,2]
[366426377,1750252232281,-770.78381141,0.0001824,2]
[366426379,1750252232291,-1200.0,0.00018476,2]
[366426381,1750252232301,-300.0,0.00018477,2]
[366426383,1750252232310,-300.0,0.00018477,2]
[366426385,1750252232320,-4826.7,0.00018478,2]
[366426386,1750252232330,-215.14662271,0.00018665,2]
[366426388,1750252232338,-300.0,0.00018789,2]
[366426390,1750252232348,-24900.0,0.00018791,2]
[366426392,1750252232357,-368.0,0.00019,2]
[366426394,1750252232367,-1000.0,0.00019241,2]
[366426395,1750252232376,-1000.0,0.00019241,2]
[366426397,1750252232385,-160.37194893,0.00019242,2]
[366426399,1750252232395,-1726.29,0.0001958,2]
[366426401,1750252232405,-176.9937618,0.000196,2]
[366426403,1750252232415,-158.8714084,0.000196,2]
[366426416,1750252232550,-573.7859869,0.000196,2]
[366426418,1750252232560,-207.45849434,0.00019792,2]
[366426420,1750252232569,-1521.50742237,0.0002,2]
[366426422,1750252232578,-151.727867,0.00020038,2]